[Event "*** Titled Tuesday Blitz"]
[Site "Chess.com"]
[Date "2021.03.09"]
[Round "6"]
[White "Fiona"]
[Black "Vamostodorecto"]
[Result "1/2-1/2"]
[WhiteElo "2205"]
[BlackElo "2365"]
[TimeControl "180+1"]
[EndTime "11:11:40 PST"]
[Termination "Game drawn - insufficient material"]

1. e4 {[%clk 0:03:00.9]} 1... e5 {[%clk 0:02:55.3]} 2. Bc4 {[%clk 0:02:59.2]}
2... Nc6 {[%clk 0:02:54.2]} 3. d3 {[%clk 0:02:58.8]} 3... Nf6 {[%clk 0:02:52.7]}
4. Nc3 {[%clk 0:02:59.4]} 4... Be7 {[%clk 0:02:51.8]} 5. f4 {[%clk 0:03:00]}
5... d6 {[%clk 0:02:51]} 6. Nf3 {[%clk 0:03:00.5]} 6... O-O {[%clk 0:02:50.2]}
7. f5 {[%clk 0:03:00.7]} 7... Na5 {[%clk 0:02:44.4]} 8. Bb3 {[%clk 0:03:00.1]}
8... Nxb3 {[%clk 0:02:43.8]} 9. axb3 {[%clk 0:03:01]} 9... d5 {[%clk 0:02:26.7]}
10. O-O {[%clk 0:02:47]} 10... Bc5+ {[%clk 0:02:23.1]} 11. Kh1 {[%clk
0:02:46.3]} 11... dxe4 {[%clk 0:02:19.9]} 12. dxe4 {[%clk 0:02:47.2]} 12... Ng4
{[%clk 0:02:16.6]} 13. Qe2 {[%clk 0:02:32.9]} 13... c6 {[%clk 0:01:42.1]} 14. h3
{[%clk 0:02:19.3]} 14... Nf6 {[%clk 0:01:42]} 15. Bg5 {[%clk 0:02:17.5]} 15...
Re8 {[%clk 0:01:39.2]} 16. Rad1 {[%clk 0:02:16.5]} 16... Qe7 {[%clk 0:01:20]}
17. Na4 {[%clk 0:01:56.1]} 17... Bb6 {[%clk 0:01:05.6]} 18. Nxb6 {[%clk
0:01:49.6]} 18... axb6 {[%clk 0:01:06.5]} 19. Qf2 {[%clk 0:01:50.2]} 19... Nxe4
{[%clk 0:00:50.5]} 20. Bxe7 {[%clk 0:01:44.1]} 20... Nxf2+ {[%clk 0:00:50.6]}
21. Rxf2 {[%clk 0:01:45]} 21... Bxf5 {[%clk 0:00:50.1]} 22. Bb4 {[%clk
0:01:36.9]} 22... f6 {[%clk 0:00:26.6]} 23. c4 {[%clk 0:01:28.3]} 23... Be6
{[%clk 0:00:19.6]} 24. Rfd2 {[%clk 0:01:20.9]} 24... Ra2 {[%clk 0:00:16.9]} 25.
Bc3 {[%clk 0:01:15.5]} 25... Kf7 {[%clk 0:00:16.1]} 26. Rd3 {[%clk 0:01:16.4]}
26... e4 {[%clk 0:00:14.5]} 27. Rd8 {[%clk 0:01:03]} 27... Rxd8 {[%clk
0:00:13.2]} 28. Rxd8 {[%clk 0:01:03.9]} 28... exf3 {[%clk 0:00:13.1]} 29. gxf3
{[%clk 0:01:04.8]} 29... b5 {[%clk 0:00:10.6]} 30. Rb8 {[%clk 0:00:56.2]} 30...
bxc4 {[%clk 0:00:09.5]} 31. Rxb7+ {[%clk 0:00:56.8]} 31... Kg6 {[%clk
0:00:09.9]} 32. b4 {[%clk 0:00:52.5]} 32... Bd5 {[%clk 0:00:08.2]} 33. Kg2
{[%clk 0:00:51.5]} 33... Ra1 {[%clk 0:00:07.6]} 34. h4 {[%clk 0:00:44.7]} 34...
Rc1 {[%clk 0:00:08.1]} 35. h5+ {[%clk 0:00:44.3]} 35... Kxh5 {[%clk 0:00:06.6]}
36. Rxg7 {[%clk 0:00:42]} 36... Rc2+ {[%clk 0:00:07.5]} 37. Kg3 {[%clk
0:00:40.3]} 37... h6 {[%clk 0:00:03.2]} 38. Ra7 {[%clk 0:00:39.4]} 38... Rc1
{[%clk 0:00:03]} 39. Ra5 {[%clk 0:00:36.2]} 39... Kg6 {[%clk 0:00:03]} 40. b5
{[%clk 0:00:35.3]} 40... cxb5 {[%clk 0:00:02]} 41. Rxb5 {[%clk 0:00:36.2]} 41...
Rd1 {[%clk 0:00:02.5]} 42. Rb6 {[%clk 0:00:35.1]} 42... Rd3 {[%clk 0:00:02.8]}
43. Rxf6+ {[%clk 0:00:35.1]} 43... Kg5 {[%clk 0:00:01.8]} 44. Rf8 {[%clk
0:00:33.9]} 44... h5 {[%clk 0:00:02.2]} 45. Kf2 {[%clk 0:00:28.3]} 45... h4
{[%clk 0:00:03.1]} 46. Bf6+ {[%clk 0:00:25.6]} 46... Kh5 {[%clk 0:00:02.2]} 47.
Rh8+ {[%clk 0:00:24.1]} 47... Kg6 {[%clk 0:00:02.8]} 48. Bxh4 {[%clk 0:00:16.7]}
48... Rxf3+ {[%clk 0:00:03.3]} 49. Ke2 {[%clk 0:00:17.3]} 49... Rb3 {[%clk
0:00:03.3]} 50. Rd8 {[%clk 0:00:11.5]} 50... Rxb2+ {[%clk 0:00:03.7]} 51. Ke3
{[%clk 0:00:11.9]} 51... Rb3+ {[%clk 0:00:04.6]} 52. Kf4 {[%clk 0:00:11.3]}
52... Rh3 {[%clk 0:00:05]} 53. Rxd5 {[%clk 0:00:10.3]} 53... Rxh4+ {[%clk
0:00:04.4]} 54. Ke3 {[%clk 0:00:10.8]} 54... Rh3+ {[%clk 0:00:04.5]} 55. Kd4
{[%clk 0:00:10.3]} 55... c3 {[%clk 0:00:05.4]} 56. Rc5 {[%clk 0:00:09.6]} 56...
Kf6 {[%clk 0:00:05.6]} 57. Rxc3 {[%clk 0:00:09.3]} 57... Rxc3 {[%clk 0:00:06.5]}
58. Kxc3 {[%clk 0:00:10.1]} 1/2-1/2

[Event "*** Titled Tuesday Blitz"]
[Site "Chess.com"]
[Date "2021.03.09"]
[Round "6"]
[White "BJthechessgod"]
[Black "gatocorbis"]
[Result "1-0"]
[WhiteElo "2287"]
[BlackElo "2097"]
[TimeControl "180+1"]
[EndTime "11:11:41 PST"]
[Termination "BJthechessgod won on time"]

1. e4 {[%clk 0:02:59.7]} 1... c5 {[%clk 0:02:58.5]} 2. Nf3 {[%clk 0:03:00]} 2...
d6 {[%clk 0:02:55.7]} 3. c3 {[%clk 0:02:58.8]} 3... Nf6 {[%clk 0:02:52.9]} 4.
Be2 {[%clk 0:02:59.7]} 4... g6 {[%clk 0:02:51.1]} 5. O-O {[%clk 0:02:58.6]} 5...
Bg7 {[%clk 0:02:50.6]} 6. Re1 {[%clk 0:02:59.1]} 6... Nc6 {[%clk 0:02:48.7]} 7.
Bf1 {[%clk 0:03:00]} 7... O-O {[%clk 0:02:46.7]} 8. d4 {[%clk 0:02:59.5]} 8...
cxd4 {[%clk 0:02:45.5]} 9. cxd4 {[%clk 0:03:00.4]} 9... d5 {[%clk 0:02:43.4]}
10. e5 {[%clk 0:02:58.3]} 10... Ne4 {[%clk 0:02:42.7]} 11. Nc3 {[%clk
0:02:56.9]} 11... Nxc3 {[%clk 0:02:39.9]} 12. bxc3 {[%clk 0:02:57.8]} 12... Bg4
{[%clk 0:02:37]} 13. h3 {[%clk 0:02:52.8]} 13... Bxf3 {[%clk 0:02:36.3]} 14.
Qxf3 {[%clk 0:02:53.7]} 14... e6 {[%clk 0:02:35.7]} 15. Ba3 {[%clk 0:02:53.3]}
15... Re8 {[%clk 0:02:33.9]} 16. Bb5 {[%clk 0:02:51.2]} 16... Rc8 {[%clk
0:02:19.6]} 17. Bc5 {[%clk 0:02:44.8]} 17... a6 {[%clk 0:02:11.1]} 18. Ba4
{[%clk 0:02:26.2]} 18... Qa5 {[%clk 0:01:55.7]} 19. Bxc6 {[%clk 0:02:04.3]}
19... Rxc6 {[%clk 0:01:50.6]} 20. a4 {[%clk 0:01:59.7]} 20... Rec8 {[%clk
0:01:43.1]} 21. Reb1 {[%clk 0:01:49.8]} 21... Qc7 {[%clk 0:01:38.7]} 22. a5
{[%clk 0:01:25.6]} 22... Bf8 {[%clk 0:01:36.4]} 23. Bxf8 {[%clk 0:01:18.9]}
23... Kxf8 {[%clk 0:01:34.6]} 24. Qf6 {[%clk 0:01:18.9]} 24... Kg8 {[%clk
0:01:33.1]} 25. Ra3 {[%clk 0:01:10.8]} 25... h5 {[%clk 0:01:27.4]} 26. Rab3
{[%clk 0:01:06.1]} 26... Qxa5 {[%clk 0:01:21.7]} 27. Rxb7 {[%clk 0:01:03.6]}
27... R6c7 {[%clk 0:01:21.3]} 28. Rxc7 {[%clk 0:00:49.4]} 28... Qxc7 {[%clk
0:01:20.2]} 29. Rb3 {[%clk 0:00:39]} 29... a5 {[%clk 0:01:18.9]} 30. Kh2 {[%clk
0:00:32.8]} 30... a4 {[%clk 0:01:14]} 31. Ra3 {[%clk 0:00:28.2]} 31... Qd7
{[%clk 0:01:13.5]} 32. Qf3 {[%clk 0:00:22.4]} 32... Rb8 {[%clk 0:01:10.3]} 33.
Qd1 {[%clk 0:00:21.8]} 33... Ra8 {[%clk 0:00:59.5]} 34. Qb1 {[%clk 0:00:18.2]}
34... Qc6 {[%clk 0:00:53.6]} 35. Qb4 {[%clk 0:00:18.2]} 35... Rc8 {[%clk
0:00:47.7]} 36. Rxa4 {[%clk 0:00:08]} 36... Qxc3 {[%clk 0:00:46.1]} 37. Qe7
{[%clk 0:00:07.5]} 37... Qc7 {[%clk 0:00:41.2]} 38. Qf6 {[%clk 0:00:07.7]} 38...
Qd7 {[%clk 0:00:37.4]} 39. Ra3 {[%clk 0:00:07.6]} 39... Qd8 {[%clk 0:00:35.2]}
40. Qf4 {[%clk 0:00:07.1]} 40... Qe7 {[%clk 0:00:33.5]} 41. Rf3 {[%clk 0:00:07]}
41... Rc4 {[%clk 0:00:31.7]} 42. Rb3 {[%clk 0:00:04.1]} 42... Kg7 {[%clk
0:00:29.8]} 43. Rb8 {[%clk 0:00:03.8]} 43... Rc7 {[%clk 0:00:20.3]} 44. Ra8
{[%clk 0:00:03.6]} 44... Rb7 {[%clk 0:00:19.1]} 45. Rc8 {[%clk 0:00:03.1]} 45...
Ra7 {[%clk 0:00:17.9]} 46. Rb8 {[%clk 0:00:03.4]} 46... Qc7 {[%clk 0:00:16.9]}
47. Re8 {[%clk 0:00:03.3]} 47... Qd7 {[%clk 0:00:15.7]} 48. Rb8 {[%clk
0:00:03.4]} 48... Ra2 {[%clk 0:00:14.3]} 49. f3 {[%clk 0:00:02.9]} 49... Ra4
{[%clk 0:00:11.5]} 50. h4 {[%clk 0:00:02.4]} 50... Qe7 {[%clk 0:00:09.2]} 51.
Kh3 {[%clk 0:00:02.2]} 51... Ra1 {[%clk 0:00:07.8]} 52. Kh2 {[%clk 0:00:01.4]}
52... Ra2 {[%clk 0:00:07]} 53. Kg3 {[%clk 0:00:02.1]} 53... Ra4 {[%clk
0:00:06.2]} 54. Rc8 {[%clk 0:00:02.5]} 54... Qd7 {[%clk 0:00:05.6]} 55. Qf6+
{[%clk 0:00:02.5]} 1-0

[Event "*** Titled Tuesday Blitz"]
[Site "Chess.com"]
[Date "2021.03.09"]
[Round "6"]
[White "Geller_Jakov"]
[Black "Balla_Tamas"]
[Result "1-0"]
[WhiteElo "2623"]
[BlackElo "2472"]
[TimeControl "180+1"]
[EndTime "11:11:42 PST"]
[Termination "Geller_Jakov won by resignation"]

1. e4 {[%clk 0:03:00.9]} 1... c5 {[%clk 0:02:57.5]} 2. Nf3 {[%clk 0:03:00.7]}
2... e6 {[%clk 0:02:56.9]} 3. d4 {[%clk 0:03:00.9]} 3... cxd4 {[%clk 0:02:57.8]}
4. Nxd4 {[%clk 0:03:01.7]} 4... a6 {[%clk 0:02:57.9]} 5. Bd3 {[%clk 0:03:01.4]}
5... Bc5 {[%clk 0:02:54.5]} 6. Nb3 {[%clk 0:03:01.4]} 6... Ba7 {[%clk
0:02:54.5]} 7. O-O {[%clk 0:03:00.4]} 7... d6 {[%clk 0:02:52.5]} 8. Qg4 {[%clk
0:02:59]} 8... Nf6 {[%clk 0:02:40.1]} 9. Qxg7 {[%clk 0:02:58.5]} 9... Rg8 {[%clk
0:02:39.6]} 10. Qh6 {[%clk 0:02:59.1]} 10... Rg6 {[%clk 0:02:39.2]} 11. Qh4
{[%clk 0:02:53.1]} 11... e5 {[%clk 0:02:39]} 12. Bg5 {[%clk 0:02:43]} 12... h6
{[%clk 0:02:36.5]} 13. Bxf6 {[%clk 0:02:43.1]} 13... Rxf6 {[%clk 0:02:34.9]} 14.
Nc3 {[%clk 0:02:36.3]} 14... Be6 {[%clk 0:02:29.7]} 15. Nd5 {[%clk 0:02:25.2]}
15... Rg6 {[%clk 0:02:29.5]} 16. Qxd8+ {[%clk 0:02:24]} 16... Kxd8 {[%clk
0:02:30.1]} 17. Rad1 {[%clk 0:02:17]} 17... Bh3 {[%clk 0:02:23.7]} 18. g3 {[%clk
0:02:07.8]} 18... Bxf1 {[%clk 0:02:22.5]} 19. Bxf1 {[%clk 0:02:08.7]} 19... Nc6
{[%clk 0:02:21.3]} 20. c3 {[%clk 0:02:07.4]} 20... Ne7 {[%clk 0:02:16.8]} 21.
Na5 {[%clk 0:02:00.4]} 21... Nxd5 {[%clk 0:02:09.8]} 22. Rxd5 {[%clk 0:02:00.6]}
22... Kc7 {[%clk 0:02:10]} 23. Bh3 {[%clk 0:01:59.9]} 23... Rf6 {[%clk
0:02:02.8]} 24. Bf5 {[%clk 0:01:59.3]} 24... h5 {[%clk 0:02:00.7]} 25. h4 {[%clk
0:01:58.7]} 25... Rd8 {[%clk 0:01:56.9]} 26. a4 {[%clk 0:01:52.6]} 26... Rg8
{[%clk 0:01:52.8]} 27. Kg2 {[%clk 0:01:50.4]} 27... Rd8 {[%clk 0:01:36.8]} 28.
Nc4 {[%clk 0:01:49.9]} 28... Rh6 {[%clk 0:01:33.2]} 29. a5 {[%clk 0:01:49.4]}
29... Rhh8 {[%clk 0:01:29.6]} 30. Kf3 {[%clk 0:01:47.3]} 30... Rhg8 {[%clk
0:01:29.2]} 31. Ke2 {[%clk 0:01:42.7]} 31... Rg7 {[%clk 0:01:27.9]} 32. Nd2
{[%clk 0:01:36.2]} 32... Bc5 {[%clk 0:01:24.3]} 33. Nf3 {[%clk 0:01:31]} 33...
f6 {[%clk 0:01:21.6]} 34. b4 {[%clk 0:01:22.1]} 34... Ba7 {[%clk 0:01:20.9]} 35.
Nd2 {[%clk 0:01:09.3]} 35... b5 {[%clk 0:01:20.1]} 36. axb6+ {[%clk 0:01:02.7]}
36... Bxb6 {[%clk 0:01:20.2]} 37. Bh3 {[%clk 0:01:02.5]} 37... Kb7 {[%clk
0:01:11.5]} 38. Nc4 {[%clk 0:01:02.2]} 38... Bc7 {[%clk 0:01:11.5]} 39. Bg2
{[%clk 0:00:59.6]} 39... Rgd7 {[%clk 0:01:07.4]} 40. Bf3 {[%clk 0:00:59.5]}
40... Rh7 {[%clk 0:01:06.3]} 41. Ne3 {[%clk 0:00:58.5]} 41... Ra8 {[%clk
0:01:02.4]} 42. Nc4 {[%clk 0:00:55.6]} 42... Kc6 {[%clk 0:01:01.2]} 43. Ke1
{[%clk 0:00:51.3]} 43... Rb8 {[%clk 0:01:00.4]} 44. Bd1 {[%clk 0:00:50.5]} 44...
Rd8 {[%clk 0:00:57.2]} 45. Ke2 {[%clk 0:00:49.8]} 45... Kb7 {[%clk 0:00:56.8]}
46. Ne3 {[%clk 0:00:49.4]} 46... Ra8 {[%clk 0:00:53.4]} 47. Nc4 {[%clk
0:00:46.2]} 47... Rd8 {[%clk 0:00:51.9]} 48. Kd3 {[%clk 0:00:46.3]} 48... Kc6
{[%clk 0:00:46.5]} 49. Ba4+ {[%clk 0:00:41.6]} 49... Kb7 {[%clk 0:00:46.1]} 50.
b5 {[%clk 0:00:42.2]} 50... axb5 {[%clk 0:00:44.5]} 51. Rxb5+ {[%clk 0:00:43.1]}
51... Ka7 {[%clk 0:00:42.8]} 52. Rb1 {[%clk 0:00:32.3]} 52... Rb8 {[%clk
0:00:38.5]} 53. Rd1 {[%clk 0:00:32.1]} 53... Kb7 {[%clk 0:00:31.8]} 54. Ne3
{[%clk 0:00:30.4]} 54... Ra8 {[%clk 0:00:30.4]} 55. Bb3 {[%clk 0:00:29.8]} 55...
Ra3 {[%clk 0:00:29.4]} 56. Bd5+ {[%clk 0:00:29.4]} 56... Kc8 {[%clk 0:00:29.3]}
57. Nc4 {[%clk 0:00:25.6]} 57... Ra7 {[%clk 0:00:28.8]} 58. Rb1 {[%clk
0:00:25.3]} 58... Kd8 {[%clk 0:00:27.9]} 59. Ne3 {[%clk 0:00:25.4]} 59... Ra3
{[%clk 0:00:25.5]} 60. Rb7 {[%clk 0:00:21.7]} 60... Rd7 {[%clk 0:00:20.4]} 61.
Be6 {[%clk 0:00:20.2]} 61... Re7 {[%clk 0:00:19.6]} 62. Bd5 {[%clk 0:00:18.7]}
62... Rd7 {[%clk 0:00:19]} 63. Nc2 {[%clk 0:00:18.4]} 63... Ba5 {[%clk
0:00:17.5]} 64. Rxd7+ {[%clk 0:00:17.5]} 64... Kxd7 {[%clk 0:00:16.8]} 65. Nxa3
{[%clk 0:00:18.4]} 1-0

[Event "*** Titled Tuesday Blitz"]
[Site "Chess.com"]
[Date "2021.03.09"]
[Round "6"]
[White "goldihouse"]
[Black "ChessQueen"]
[Result "0-1"]
[WhiteElo "2568"]
[BlackElo "2784"]
[TimeControl "180+1"]
[EndTime "11:11:45 PST"]
[Termination "ChessQueen won on time"]

1. c4 {[%clk 0:03:00.9]} 1... Nf6 {[%clk 0:02:54.6]} 2. g3 {[%clk 0:03:01.3]}
2... e5 {[%clk 0:02:52.1]} 3. Bg2 {[%clk 0:03:01.1]} 3... d5 {[%clk 0:02:51.1]}
4. cxd5 {[%clk 0:03:02]} 4... Nxd5 {[%clk 0:02:50.1]} 5. Nf3 {[%clk 0:03:02.6]}
5... Nc6 {[%clk 0:02:49.4]} 6. O-O {[%clk 0:03:02.7]} 6... Nb6 {[%clk
0:02:48.1]} 7. b3 {[%clk 0:03:01.3]} 7... Be7 {[%clk 0:02:46.6]} 8. Nc3 {[%clk
0:03:00.5]} 8... O-O {[%clk 0:02:44.5]} 9. Bb2 {[%clk 0:03:01.1]} 9... f6 {[%clk
0:02:43.2]} 10. d3 {[%clk 0:03:01.4]} 10... Bg4 {[%clk 0:02:42.5]} 11. Rc1
{[%clk 0:02:59]} 11... Qc8 {[%clk 0:02:40]} 12. Re1 {[%clk 0:02:59.2]} 12... Rd8
{[%clk 0:02:34.7]} 13. Ne4 {[%clk 0:02:54.3]} 13... a5 {[%clk 0:02:26]} 14. a3
{[%clk 0:02:52]} 14... Be6 {[%clk 0:02:11.6]} 15. Qc2 {[%clk 0:02:50.7]} 15...
Bd5 {[%clk 0:02:07.8]} 16. Ned2 {[%clk 0:02:43.4]} 16... Qg4 {[%clk 0:01:55]}
17. Nc4 {[%clk 0:02:37.4]} 17... Qh5 {[%clk 0:01:38.7]} 18. Red1 {[%clk
0:02:10.4]} 18... Qf7 {[%clk 0:01:25.5]} 19. Ncd2 {[%clk 0:02:06.8]} 19... a4
{[%clk 0:01:20.7]} 20. b4 {[%clk 0:02:04.7]} 20... Rac8 {[%clk 0:01:16.9]} 21.
Qb1 {[%clk 0:01:40.2]} 21... Na7 {[%clk 0:01:08.4]} 22. d4 {[%clk 0:01:33.7]}
22... exd4 {[%clk 0:01:04.1]} 23. Nxd4 {[%clk 0:01:30]} 23... Bxg2 {[%clk
0:01:02.6]} 24. Kxg2 {[%clk 0:01:30.9]} 24... Rd7 {[%clk 0:00:51.7]} 25. N2f3
{[%clk 0:01:15.8]} 25... Nc4 {[%clk 0:00:50.6]} 26. Qc2 {[%clk 0:00:53.1]} 26...
Nxb2 {[%clk 0:00:43.1]} 27. Qxb2 {[%clk 0:00:54]} 27... Rcd8 {[%clk 0:00:41.6]}
28. Qc2 {[%clk 0:00:49.2]} 28... Nc8 {[%clk 0:00:36.4]} 29. Qxa4 {[%clk
0:00:43.3]} 29... Nb6 {[%clk 0:00:36.6]} 30. Qc2 {[%clk 0:00:38.4]} 30... c6
{[%clk 0:00:36]} 31. Nf5 {[%clk 0:00:30]} 31... Bf8 {[%clk 0:00:35.2]} 32. Ne3
{[%clk 0:00:17.9]} 32... g6 {[%clk 0:00:31.9]} 33. Rxd7 {[%clk 0:00:17.7]} 33...
Rxd7 {[%clk 0:00:31.2]} 34. Rd1 {[%clk 0:00:16.9]} 34... Bh6 {[%clk 0:00:29.9]}
35. Rxd7 {[%clk 0:00:16]} 35... Nxd7 {[%clk 0:00:27.4]} 36. Nc4 {[%clk
0:00:14.2]} 36... Qd5 {[%clk 0:00:25.7]} 37. e4 {[%clk 0:00:14.1]} 37... Qe6
{[%clk 0:00:25.5]} 38. Qd3 {[%clk 0:00:13.6]} 38... Bf8 {[%clk 0:00:23.9]} 39.
Nd4 {[%clk 0:00:12.2]} 39... Qe7 {[%clk 0:00:24.3]} 40. Nf3 {[%clk 0:00:09.4]}
40... Qe6 {[%clk 0:00:21.1]} 41. h4 {[%clk 0:00:08.6]} 41... Kg7 {[%clk
0:00:16.7]} 42. Qd4 {[%clk 0:00:08.3]} 42... Kg8 {[%clk 0:00:14.3]} 43. Qd3
{[%clk 0:00:01.7]} 43... c5 {[%clk 0:00:12.2]} 44. b5 {[%clk 0:00:01.8]} 44...
Kg7 {[%clk 0:00:11.7]} 45. Qd5 {[%clk 0:00:01.9]} 45... Qxd5 {[%clk 0:00:11.7]}
46. exd5 {[%clk 0:00:02.8]} 46... Kf7 {[%clk 0:00:11.2]} 47. Nfd2 {[%clk
0:00:02.6]} 47... f5 {[%clk 0:00:10.9]} 48. Nf3 {[%clk 0:00:02]} 48... Bg7
{[%clk 0:00:07]} 49. Ng5+ {[%clk 0:00:02.1]} 49... Kg8 {[%clk 0:00:05.9]} 50.
Ne6 {[%clk 0:00:03]} 50... Bf6 {[%clk 0:00:05.5]} 51. d6 {[%clk 0:00:02.9]}
51... Kf7 {[%clk 0:00:05]} 52. Nc7 {[%clk 0:00:03.1]} 52... h6 {[%clk
0:00:04.5]} 53. Nd5 {[%clk 0:00:03.1]} 53... Bd8 {[%clk 0:00:04.8]} 54. f4
{[%clk 0:00:02.9]} 54... Ke6 {[%clk 0:00:04.8]} 55. Nde3 {[%clk 0:00:01.9]}
55... Nf6 {[%clk 0:00:04.5]} 56. Kf3 {[%clk 0:00:01.8]} 56... Ne8 {[%clk
0:00:04.9]} 0-1

[Event "*** Titled Tuesday Blitz"]
[Site "Chess.com"]
[Date "2021.03.09"]
[Round "6"]
[White "floplover"]
[Black "bogcsab"]
[Result "1-0"]
[WhiteElo "2302"]
[BlackElo "2156"]
[TimeControl "180+1"]
[EndTime "11:11:47 PST"]
[Termination "floplover won on time"]

1. d4 {[%clk 0:03:00.9]} 1... d6 {[%clk 0:03:00.1]} 2. Nf3 {[%clk 0:03:00.7]}
2... Nf6 {[%clk 0:03:00.2]} 3. g3 {[%clk 0:02:58.8]} 3... g6 {[%clk 0:02:59.9]}
4. Bg2 {[%clk 0:02:59.7]} 4... Bg7 {[%clk 0:03:00.4]} 5. O-O {[%clk 0:03:00.2]}
5... O-O {[%clk 0:03:01.1]} 6. a4 {[%clk 0:03:00.9]} 6... Nbd7 {[%clk
0:03:01.8]} 7. a5 {[%clk 0:03:00.5]} 7... e5 {[%clk 0:03:02.4]} 8. a6 {[%clk
0:02:57.5]} 8... e4 {[%clk 0:02:57]} 9. Nfd2 {[%clk 0:02:55.5]} 9... d5 {[%clk
0:02:52.6]} 10. c4 {[%clk 0:02:53.4]} 10... c6 {[%clk 0:02:50.9]} 11. Nc3 {[%clk
0:02:44.6]} 11... bxa6 {[%clk 0:02:47.7]} 12. e3 {[%clk 0:02:16.2]} 12... Nb6
{[%clk 0:02:37.5]} 13. c5 {[%clk 0:02:12.8]} 13... Nbd7 {[%clk 0:02:37.7]} 14.
Qa4 {[%clk 0:02:10.6]} 14... Qc7 {[%clk 0:02:33.6]} 15. Nb3 {[%clk 0:02:10.4]}
15... Ne8 {[%clk 0:02:28.3]} 16. Na5 {[%clk 0:02:10]} 16... Nb8 {[%clk
0:02:27.7]} 17. f3 {[%clk 0:02:03.9]} 17... f5 {[%clk 0:02:27.4]} 18. Bd2 {[%clk
0:01:58.7]} 18... Rf6 {[%clk 0:02:09.4]} 19. Ra3 {[%clk 0:01:45]} 19... Nd7
{[%clk 0:02:05.9]} 20. fxe4 {[%clk 0:01:39.8]} 20... dxe4 {[%clk 0:02:04.7]} 21.
Rf2 {[%clk 0:01:17.8]} 21... Rb8 {[%clk 0:02:03.9]} 22. Rb3 {[%clk 0:01:10.8]}
22... Rxb3 {[%clk 0:01:50.3]} 23. Qxb3+ {[%clk 0:01:11.7]} 23... Kh8 {[%clk
0:01:50.2]} 24. Qa4 {[%clk 0:01:12.4]} 24... h6 {[%clk 0:01:49.2]} 25. Bf1
{[%clk 0:01:12]} 25... g5 {[%clk 0:01:45.9]} 26. b4 {[%clk 0:01:12]} 26... Bf8
{[%clk 0:01:38.4]} 27. Be2 {[%clk 0:01:09.4]} 27... Ng7 {[%clk 0:01:37.7]} 28.
d5 {[%clk 0:01:06.8]} 28... Ne5 {[%clk 0:01:08.1]} 29. d6 {[%clk 0:01:04.8]}
29... Qd7 {[%clk 0:01:01.6]} 30. Nxe4 {[%clk 0:01:02.7]} 30... Rf7 {[%clk
0:00:51.3]} 31. Bc3 {[%clk 0:00:54.9]} 31... fxe4 {[%clk 0:00:44.4]} 32. Bxe5
{[%clk 0:00:53.8]} 32... Rxf2 {[%clk 0:00:43.7]} 33. Kxf2 {[%clk 0:00:54.7]}
33... Qf5+ {[%clk 0:00:43.5]} 34. Kg2 {[%clk 0:00:43.7]} 34... Qxe5 {[%clk
0:00:33]} 35. Qxc6 {[%clk 0:00:43.9]} 35... Be6 {[%clk 0:00:20.6]} 36. d7 {[%clk
0:00:37.4]} 36... Qb2 {[%clk 0:00:20.5]} 37. Kf2 {[%clk 0:00:31.1]} 37... Bg4
{[%clk 0:00:19.6]} 38. Qxh6+ {[%clk 0:00:29.7]} 38... Kg8 {[%clk 0:00:18]} 39.
Qxa6 {[%clk 0:00:29.3]} 39... Bxd7 {[%clk 0:00:14.6]} 40. c6 {[%clk 0:00:27]}
40... Bg4 {[%clk 0:00:12.2]} 41. c7 {[%clk 0:00:26.2]} 41... Qc3 {[%clk
0:00:09.4]} 42. Bxg4 {[%clk 0:00:19.8]} 42... Qxc7 {[%clk 0:00:09]} 43. Be6+
{[%clk 0:00:17.1]} 43... Nxe6 {[%clk 0:00:07.1]} 44. Qxe6+ {[%clk 0:00:18]}
44... Qf7+ {[%clk 0:00:07.4]} 45. Qxf7+ {[%clk 0:00:18.1]} 45... Kxf7 {[%clk
0:00:08.1]} 46. b5 {[%clk 0:00:13.9]} 46... Ke6 {[%clk 0:00:05.7]} 47. Nc6
{[%clk 0:00:13.4]} 47... Bc5 {[%clk 0:00:05.5]} 48. g4 {[%clk 0:00:12.2]} 48...
Kd5 {[%clk 0:00:04.8]} 49. Ke2 {[%clk 0:00:10.8]} 49... a6 {[%clk 0:00:04.4]}
50. h4 {[%clk 0:00:05.7]} 50... axb5 {[%clk 0:00:04.1]} 51. Na5 {[%clk
0:00:03.1]} 51... gxh4 {[%clk 0:00:04]} 52. Nb3 {[%clk 0:00:01.7]} 52... Kc4
{[%clk 0:00:02.7]} 53. Nd2+ {[%clk 0:00:01]} 53... Kd5 {[%clk 0:00:03]} 54. g5
{[%clk 0:00:01.9]} 54... h3 {[%clk 0:00:01.7]} 55. Kf2 {[%clk 0:00:01.9]} 1-0